Workbook

Sheet Contents
C1: Go to Charts by Pressing Shift and Enter on Menu Item
G2: Instructions at www.edbodmer.com
C3: Sheet Tab | D3: Description | E3: Author | G3: Questions: e-mail edwardbodmer@gmail.com
B4: 1 | C4: Contents
B5: 2 | C5: Cash Flow Model from ROIC
B6: 3 | C6: Amazon Stats
B7: 4 | C7: Valuation from Driver Formula
B8: 5 | C8: 2004-2014 Financial Statements
B10: File Name: | D10: =File_name() -> C:\Users\Monika Lewenski\Courses\Chapter 1. Models and Analysis\B. Project Finance Models and Exercises\D. Resolving Circular Refereces for Funding, Scultping and DSRA\Current Circular Reference Template1.xlsm
B12: Last Save Date | D12: =lastsaved() -> 10/5/2018 8:41:13 PM
B13: Last Save By | D13: =last_save_by() -> Elvis Presley
B15: Colour Codes

Sheet Cash Flow Model from ROIC
A1: Contents
B2: Period | F2: 2017 | G2: 2017 | H2: 2018 | I2: 2019 | J2: 2020 | K2: 2021 | L2: 2022 | M2: 2023 | N2: 2024 | O2: 2025 | P2: 2026 | Q2: 2027 | R2: 2028 | S2: 2029 | T2: 2030 | U2: 2031 | V2: 2032 | W2: 2033 | X2: 2034 | Y2: 2035 | Z2: 2036 | AA2: 2037
B3: Holding Period | E3: 19 | F3: =F2+E3 -> 2036 | G3: =G2<=$F$3 -> TRUE | H3: =H2<=$F$3 -> TRUE | I3: TRUE | J3: TRUE | K3: TRUE | L3: TRUE | M3: TRUE | N3: TRUE | O3: TRUE | P3: TRUE | Q3: TRUE | R3: TRUE | S3: TRUE | T3: TRUE | U3: TRUE | V3: TRUE | W3: TRUE | X3: TRUE | Y3: TRUE | Z3: TRUE | AA3: FALSE
B4: Terminal Period | E4: =E3 -> 19 | F4: =F3 -> 2036 | G4: =G2=$F$4 -> FALSE | H4: =H2=$F$4 -> FALSE | I4: FALSE | J4: FALSE | K4: FALSE | L4: FALSE | M4: FALSE | N4: FALSE | O4: FALSE | P4: FALSE | Q4: FALSE | R4: FALSE | S4: FALSE | T4: FALSE | U4: FALSE | V4: FALSE | W4: FALSE | X4: FALSE | Y4: FALSE | Z4: TRUE | AA4: FALSE
B6: Results: Enterprise Value | E6: =E141 -> -664327488.9 | G6: EV | H6: =E6 -> -664327488.9 | J6: Terminal EV | K6: =E137 -> 0
B7: Less: EV to Equity Bridge | E7: =E32 -> 18739210.8 | G7: EBITDA | H7: =LOOKUP(G2,2:2,83:83) -> 13069958.12 | J7: Terminal EBITA | K7: =LOOKUP(F3,2:2,83:83) -> 1001961323
B8: Equity Value | E8: =E6-E7 -> -683066699.7 | G8: EV/EBITDA | H8: =H6/H7 -> -50.8285859 | J8: EV/EBITDA | K8: =K6/K7 -> 0
B9: Equity Value per Share | E9: =E8/E33 -> -1400.472997
A11: Assumptions | E11: 2009 | F11: =F2 -> 2017 | G11: 2018 | H11: 2030 | I11: =F3+1 -> 2037
I12: Terminal
B13: ROIC Projected | F13: =E30 -> 0.07936620014 | G13: 0.15 | H13: 0.18 | I13: 0.1
B14: Cost of Capital | F14: 0.07 | G14: =F14 -> 0.07 | H14: =G14 -> 0.07 | I14: =H14 -> 0.07
B15: Growth | F15: 0.35 | G15: 0.3 | H15: 0.25 | I15: 0.04
B17: Partial Year Factor | E17: 0.5
B18: Depreciation Life | E18: 10 | K18: Instructions at www.edbodmer.com
B19: Tax Rate | E19: ='Amazon Stats'!E15 -> 0.2600095443 | K19: Questions: e-mail edwardbodmer@gmail.com
B20: Working Capital/Opening Plant Net | E20: 0.5
B21: Terminal EV/EBITDA | E21: 15
E23: Amount | F23: Pct
B24: Opening Net Plant | E24: ='Amazon Stats'!J23+'Amazon Stats'!J25 -> 65589999 | F24: =E24/E26 -> 1.220691752
B25: Opening WC and Other | E25: ='Amazon Stats'!J24 -> -11858171.22 | F25: =E25/E24 -> -0.1807923678
B26: Opening Invested Capital | E26: =SUM(E24:E25) -> 53731827.78 | F26: =E26/E26 -> 1
B28: Historic Year NOPAT | E28: ='Amazon Stats'!J20 -> 3280377.69
B29: Intial Year NOPAT Forecast | E29: ='Valuation from Driver Formula'!D8 -> 4264490.997
B30: Initial Year ROIC (Opening Balance) | E30: =E29/E26 -> 0.07936620014
B32: EV to Equity Bridge | E32: ='Amazon Stats'!E19 -> 18739210.8
B33: Shares in Valuation Year | E33: ='Amazon Stats'!E20 -> 487740
A35: Stable Depreciation Analysis
H36: Data Table with Alternative Growth
I37: =G2 -> 2017 | J37: =H11 -> 2030 | K37: =I11 -> 2037
B38: Growth | E38: =G15 -> 0.3 | I38: =G15 -> 0.3 | J38: =H15 -> 0.25 | K38: =I15 -> 0.04
B39: Stable Cap Exp/Depreciation | E39: =LOOKUP(E18+1,43:43,49:49) -> 3.234634396 | H39: =E39 -> 3.234634396 | I39: 3.234634396 | J39: 2.800725624 | K39: 1.232909443
B40: Depreciation to Net Plant | E40: =LOOKUP(E18+1,43:43,57:57) -> 0.1342501487 | H40: =E40 -> 0.1342501487 | I40: 0.1342501487 | J40: 0.1388329219 | K40: 0.1717405676
G43: 1 | H43: 2 | I43: 3 | J43: 4 | K43: 5 | L43: 6 | M43: 7 | N43: 8 | O43: 9 | P43: 10 | Q43: 11 | R43: 12 | S43: 13 | T43: 14 | U43: 15 | V43: 16 | W43: 17 | X43: 18 | Y43: 19 | Z43: 20 | AA43: 21 | AB43: 21 | AC43: 21 | AD43: 21 | AE43: 21 | AF43: 21 | AG43: 21 | AH43: 21 | AI43: 21 | AJ43: 21 | AK43: 21 | AL43: 21 | AM43: 21 | AN43: 21 | AO43: 21 | AP43: 21 | AQ43: 21 | AR43: 21 | AS43: 21 | AT43: 21 | AU43: 21 | AV43: 21 | AW43: 21 | AX43: 21 | AY43: 21 | AZ43: 21 | BA43: 21 | BB43: 21 | BC43: 21 | BD43: 21
B44: Opening Balance | G44: =F47 -> 0 | H44: =G47 -> 1 | I44: 2.3 | J44: 3.99 | K44: 6.187 | L44: 9.0431 | M44: 12.75603 | N44: 17.582839 | O44: 23.8576907 | P44: 32.01499791 | Q44: 42.61949728 | R44: 55.40534647 | S44: 72.02695041 | T44: 93.63503553 | U44: 121.7255462 | V44: 158.24321 | W44: 205.7161731 | X44: 267.431025 | Y44: 347.6603325 | Z44: 451.9584322 | AA44: 587.5459619 | AB44: =AA47 -> 763.8097504 | AC44: =AB47 -> 992.9526756 | AD44: =AC47 -> 1290.838478 | AE44: =AD47 -> 1678.090022 | AF44: =AE47 -> 2181.517028 | AG44: =AF47 -> 2835.972137 | AH44: =AG47 -> 3686.763778 | AI44: =AH47 -> 4792.792911 | AJ44: =AI47 -> 6230.630784 | AK44: =AJ47 -> 8099.82002 | AL44: =AK47 -> 10529.76603 | AM44: =AL47 -> 13688.69583 | AN44: =AM47 -> 17795.30458 | AO44: =AN47 -> 23133.89596 | AP44: =AO47 -> 30074.06475 | AQ44: =AP47 -> 39096.28417 | AR44: =AQ47 -> 50825.16942 | AS44: =AR47 -> 66072.72025 | AT44: =AS47 -> 85894.53632 | AU44: =AT47 -> 111662.8972 | AV44: =AU47 -> 145161.7664 | AW44: =AV47 -> 188710.2963 | AX44: =AW47 -> 245323.3852 | AY44: =AX47 -> 318920.4007 | AZ44: =AY47 -> 414596.521 | BA44: =AZ47 -> 538975.4772 | BB44: =BA47 -> 700668.1204 | BC44: =BB47 -> 910868.5565 | BD44: =BC47 -> 1184129.124
B45: Add: Capital Expenditures | E45: 1 | G45: =E45 -> 1 | H45: =G45*(1+$E$38) -> 1.3 | I45: 1.69 | J45: 2.197 | K45: 2.8561 | L45: 3.71293 | M45: 4.826809 | N45: 6.2748517 | O45: 8.15730721 | P45: 10.60449937 | Q45: 13.78584918 | R45: 17.92160394 | S45: 23.29808512 | T45: 30.28751066 | U45: 39.37376386 | V45: 51.18589301 | W45: 66.54166092 | X45: 86.50415919 | Y45: 112.455407 | Z45: 146.192029 | AA45: 190.0496377 | AB45: =AA45*(1+$E$38) -> 247.0645291 | AC45: 321.1838878 | AD45: 417.5390541 | AE45: 542.8007704 | AF45: 705.6410015 | AG45: 917.3333019 | AH45: 1192.533293 | AI45: 1550.29328 | AJ45: 2015.381264 | AK45: 2619.995644 | AL45: 3405.994337 | AM45: 4427.792638 | AN45: 5756.130429 | AO45: 7482.969558 | AP45: 9727.860425 | AQ45: 12646.21855 | AR45: 16440.08412 | AS45: 21372.10935 | AT45: 27783.74216 | AU45: 36118.86481 | AV45: 46954.52425 | AW45: 61040.88153 | AX45: 79353.14598 | AY45: 103159.0898 | AZ45: 134106.8167 | BA45: 174338.8617 | BB45: 226640.5202 | BC45: 294632.6763 | BD45: 383022.4792
B46: Less: Retirements | G46: =IF(G43>=$E$18,OFFSET(G45,0,-$E$18),0) -> 0 | H46: 0 | I46: 0 | J46: 0 | K46: 0 | L46: 0 | M46: 0 | N46: 0 | O46: 0 | P46: 0 | Q46: 1 | R46: 1.3 | S46: 1.69 | T46: 2.197 | U46: 2.8561 | V46: 3.71293 | W46: 4.826809 | X46: 6.2748517 | Y46: 8.15730721 | Z46: 10.60449937 | AA46: 13.78584918 | AB46: =IF(AB43>=$E$18,OFFSET(AB45,0,-$E$18),0) -> 17.92160394 | AC46: 23.29808512 | AD46: 30.28751066 | AE46: 39.37376386 | AF46: 51.18589301 | AG46: 66.54166092 | AH46: 86.50415919 | AI46: 112.455407 | AJ46: 146.192029 | AK46: 190.0496377 | AL46: 247.0645291 | AM46: 321.1838878 | AN46: 417.5390541 | AO46: 542.8007704 | AP46: 705.6410015 | AQ46: 917.3333019 | AR46: 1192.533293 | AS46: 1550.29328 | AT46: 2015.381264 | AU46: 2619.995644 | AV46: 3405.994337 | AW46: 4427.792638 | AX46: 5756.130429 | AY46: 7482.969558 | AZ46: 9727.860425 | BA46: 12646.21855 | BB46: 16440.08412 | BC46: 21372.10935 | BD46: 27783.74216
B47: Closing Balance | F47: 0 | G47: =G44+G45-G46 -> 1 | H47: =H44+H45-H46 -> 2.3 | I47: 3.99 | J47: 6.187 | K47: 9.0431 | L47: 12.75603 | M47: 17.582839 | N47: 23.8576907 | O47: 32.01499791 | P47: 42.61949728 | Q47: 55.40534647 | R47: 72.02695041 | S47: 93.63503553 | T47: 121.7255462 | U47: 158.24321 | V47: 205.7161731 | W47: 267.431025 | X47: 347.6603325 | Y47: 451.9584322 | Z47: 587.5459619 | AA47: 763.8097504 | AB47: =AB44+AB45-AB46 -> 992.9526756 | AC47: 1290.838478 | AD47: 1678.090022 | AE47: 2181.517028 | AF47: 2835.972137 | AG47: 3686.763778 | AH47: 4792.792911 | AI47: 6230.630784 | AJ47: 8099.82002 | AK47: 10529.76603 | AL47: 13688.69583 | AM47: 17795.30458 | AN47: 23133.89596 | AO47: 30074.06475 | AP47: 39096.28417 | AQ47: 50825.16942 | AR47: 66072.72025 | AS47: 85894.53632 | AT47: 111662.8972 | AU47: 145161.7664 | AV47: 188710.2963 | AW47: 245323.3852 | AX47: 318920.4007 | AY47: 414596.521 | AZ47: 538975.4772 | BA47: 700668.1204 | BB47: 910868.5565 | BC47: 1184129.124 | BD47: 1539367.861
B48: Depreciation | E48: =1/E18 -> 0.1 | G48: =G44*$E$48 -> 0 | H48: 0.1 | I48: 0.23 | J48: 0.399 | K48: 0.6187 | L48: 0.90431 | M48: 1.275603 | N48: 1.7582839 | O48: 2.38576907 | P48: 3.201499791 | Q48: 4.261949728 | R48: 5.540534647 | S48: 7.202695041 | T48: 9.363503553 | U48: 12.17255462 | V48: 15.824321 | W48: 20.57161731 | X48: 26.7431025 | Y48: 34.76603325 | Z48: 45.19584322 | AA48: 58.75459619 | AB48: =AB44*$E$48 -> 76.38097504 | AC48: 99.29526756 | AD48: 129.0838478 | AE48: 167.8090022 | AF48: 218.1517028 | AG48: 283.5972137 | AH48: 368.6763778 | AI48: 479.2792911 | AJ48: 623.0630784 | AK48: 809.982002 | AL48: 1052.976603 | AM48: 1368.869583 | AN48: 1779.530458 | AO48: 2313.389596 | AP48: 3007.406475 | AQ48: 3909.628417 | AR48: 5082.516942 | AS48: 6607.272025 | AT48: 8589.453632 | AU48: 11166.28972 | AV48: 14516.17664 | AW48: 18871.02963 | AX48: 24532.33852 | AY48: 31892.04007 | AZ48: 41459.6521 | BA48: 53897.54772 | BB48: 70066.81204 | BC48: 91086.85565 | BD48: 118412.9124
B49: Cap Exp to Depreciation | G49: =IF(G48,G45/G48) -> FALSE | H49: =IF(H48,H45/H48) -> 13 | I49: 7.347826087 | J49: 5.506265664 | K49: 4.616292226 | L49: 4.105815484 | M49: 3.783942967 | N49: 3.568736368 | O49: 3.419152051 | P49: 3.312353605 | Q49: 3.234634396 | R49: 3.234634396 | S49: 3.234634396 | T49: 3.234634396 | U49: 3.234634396 | V49: 3.234634396 | W49: 3.234634396 | X49: 3.234634396 | Y49: 3.234634396 | Z49: 3.234634396 | AA49: 3.234634396 | AB49: =IF(AB48,AB45/AB48) -> 3.234634396 | AC49: 3.234634396 | AD49: 3.234634396 | AE49: 3.234634396 | AF49: 3.234634396 | AG49: 3.234634396 | AH49: 3.234634396 | AI49: 3.234634396 | AJ49: 3.234634396 | AK49: 3.234634396 | AL49: 3.234634396 | AM49: 3.234634396 | AN49: 3.234634396 | AO49: 3.234634396 | AP49: 3.234634396 | AQ49: 3.234634396 | AR49: 3.234634396 | AS49: 3.234634396 | AT49: 3.234634396 | AU49: 3.234634396 | AV49: 3.234634396 | AW49: 3.234634396 | AX49: 3.234634396 | AY49: 3.234634396 | AZ49: 3.234634396 | BA49: 3.234634396 | BB49: 3.234634396 | BC49: 3.234634396 | BD49: 3.234634396
B51: Accum Depr
B52: Opening Balance | G52: =F55 -> 0 | H52: =G55 -> 0 | I52: 0.1 | J52: 0.33 | K52: 0.729 | L52: 1.3477 | M52: 2.25201 | N52: 3.527613 | O52: 5.2858969 | P52: 7.67166597 | Q52: 10.87316576 | R52: 14.13511549 | S52: 18.37565014 | T52: 23.88834518 | U52: 31.05484873 | V52: 40.37130335 | W52: 52.48269435 | X52: 68.22750266 | Y52: 88.69575346 | Z52: 115.3044795 | AA52: 149.8958233 | AB52: =AA55 -> 194.8645703 | AC52: =AB55 -> 253.3239415 | AD52: =AC55 -> 329.3211239 | AE52: =AD55 -> 428.1174611 | AF52: =AE55 -> 556.5526994 | AG52: =AF55 -> 723.5185092 | AH52: =AG55 -> 940.5740619 | AI52: =AH55 -> 1222.746281 | AJ52: =AI55 -> 1589.570165 | AK52: =AJ55 -> 2066.441214 | AL52: =AK55 -> 2686.373578 | AM52: =AL55 -> 3492.285652 | AN52: =AM55 -> 4539.971347 | AO52: =AN55 -> 5901.962751 | AP52: =AO55 -> 7672.551577 | AQ52: =AP55 -> 9974.31705 | AR52: =AQ55 -> 12966.61216 | AS52: =AR55 -> 16856.59581 | AT52: =AS55 -> 21913.57456 | AU52: =AT55 -> 28487.64693 | AV52: =AU55 -> 37033.941 | AW52: =AV55 -> 48144.12331 | AX52: =AW55 -> 62587.3603 | AY52: =AX55 -> 81363.56839 | AZ52: =AY55 -> 105772.6389 | BA52: =AZ55 -> 137504.4306 | BB52: =BA55 -> 178755.7597 | BC52: =BB55 -> 232382.4877 | BD52: =BC55 -> 302097.234
B53: Add: Depreciation Expense | G53: =G48 -> 0 | H53: =H48 -> 0.1 | I53: 0.23 | J53: 0.399 | K53: 0.6187 | L53: 0.90431 | M53: 1.275603 | N53: 1.7582839 | O53: 2.38576907 | P53: 3.201499791 | Q53: 4.261949728 | R53: 5.540534647 | S53: 7.202695041 | T53: 9.363503553 | U53: 12.17255462 | V53: 15.824321 | W53: 20.57161731 | X53: 26.7431025 | Y53: 34.76603325 | Z53: 45.19584322 | AA53: 58.75459619 | AB53: =AB48 -> 76.38097504 | AC53: 99.29526756 | AD53: 129.0838478 | AE53: 167.8090022 | AF53: 218.1517028 | AG53: 283.5972137 | AH53: 368.6763778 | AI53: 479.2792911 | AJ53: 623.0630784 | AK53: 809.982002 | AL53: 1052.976603 | AM53: 1368.869583 | AN53: 1779.530458 | AO53: 2313.389596 | AP53: 3007.406475 | AQ53: 3909.628417 | AR53: 5082.516942 | AS53: 6607.272025 | AT53: 8589.453632 | AU53: 11166.28972 | AV53: 14516.17664 | AW53: 18871.02963 | AX53: 24532.33852 | AY53: 31892.04007 | AZ53: 41459.6521 | BA53: 53897.54772 | BB53: 70066.81204 | BC53: 91086.85565 | BD53: 118412.9124
B54: Less: Retirements | G54: =G46 -> 0 | H54: =H46 -> 0 | I54: 0 | J54: 0 | K54: 0 | L54: 0 | M54: 0 | N54: 0 | O54: 0 | P54: 0 | Q54: 1 | R54: 1.3 | S54: 1.69 | T54: 2.197 | U54: 2.8561 | V54: 3.71293 | W54: 4.826809 | X54: 6.2748517 | Y54: 8.15730721 | Z54: 10.60449937 | AA54: 13.78584918 | AB54: =AB46 -> 17.92160394 | AC54: 23.29808512 | AD54: 30.28751066 | AE54: 39.37376386 | AF54: 51.18589301 | AG54: 66.54166092 | AH54: 86.50415919 | AI54: 112.455407 | AJ54: 146.192029 | AK54: 190.0496377 | AL54: 247.0645291 | AM54: 321.1838878 | AN54: 417.5390541 | AO54: 542.8007704 | AP54: 705.6410015 | AQ54: 917.3333019 | AR54: 1192.533293 | AS54: 1550.29328 | AT54: 2015.381264 | AU54: 2619.995644 | AV54: 3405.994337 | AW54: 4427.792638 | AX54: 5756.130429 | AY54: 7482.969558 | AZ54: 9727.860425 | BA54: 12646.21855 | BB54: 16440.08412 | BC54: 21372.10935 | BD54: 27783.74216
B55: Closing Balance | G55: =G52+G53-G54 -> 0 | H55: =H52+H53-H54 -> 0.1 | I55: 0.33 | J55: 0.729 | K55: 1.3477 | L55: 2.25201 | M55: 3.527613 | N55: 5.2858969 | O55: 7.67166597 | P55: 10.87316576 | Q55: 14.13511549 | R55: 18.37565014 | S55: 23.88834518 | T55: 31.05484873 | U55: 40.37130335 | V55: 52.48269435 | W55: 68.22750266 | X55: 88.69575346 | Y55: 115.3044795 | Z55: 149.8958233 | AA55: 194.8645703 | AB55: =AB52+AB53-AB54 -> 253.3239415 | AC55: 329.3211239 | AD55: 428.1174611 | AE55: 556.5526994 | AF55: 723.5185092 | AG55: 940.5740619 | AH55: 1222.746281 | AI55: 1589.570165 | AJ55: 2066.441214 | AK55: 2686.373578 | AL55: 3492.285652 | AM55: 4539.971347 | AN55: 5901.962751 | AO55: 7672.551577 | AP55: 9974.31705 | AQ55: 12966.61216 | AR55: 16856.59581 | AS55: 21913.57456 | AT55: 28487.64693 | AU55: 37033.941 | AV55: 48144.12331 | AW55: 62587.3603 | AX55: 81363.56839 | AY55: 105772.6389 | AZ55: 137504.4306 | BA55: 178755.7597 | BB55: 232382.4877 | BC55: 302097.234 | BD55: 392726.4042
B56: Net Plant | G56: =G44-G52 -> 0 | H56: =H44-H52 -> 1 | I56: 2.2 | J56: 3.66 | K56: 5.458 | L56: 7.6954 | M56: 10.50402 | N56: 14.055226 | O56: 18.5717938 | P56: 24.34333194 | Q56: 31.74633152 | R56: 41.27023098 | S56: 53.65130027 | T56: 69.74669035 | U56: 90.67069746 | V56: 117.8719067 | W56: 153.2334787 | X56: 199.2035223 | Y56: 258.964579 | Z56: 336.6539527 | AA56: 437.6501385 | AB56: =AB44-AB52 -> 568.9451801 | AC56: 739.6287341 | AD56: 961.5173544 | AE56: 1249.972561 | AF56: 1624.964329 | AG56: 2112.453628 | AH56: 2746.189716 | AI56: 3570.046631 | AJ56: 4641.06062 | AK56: 6033.378806 | AL56: 7843.392447 | AM56: 10196.41018 | AN56: 13255.33324 | AO56: 17231.93321 | AP56: 22401.51317 | AQ56: 29121.96712 | AR56: 37858.55726 | AS56: 49216.12443 | AT56: 63980.96176 | AU56: 83175.25029 | AV56: 108127.8254 | AW56: 140566.173 | AX56: 182736.0249 | AY56: 237556.8324 | AZ56: 308823.8821 | BA56: 401471.0467 | BB56: 521912.3607 | BC56: 678486.0689 | BD56: 882031.8895
B57: Depreciation to Net Plant | G57: =IF(G56,G48/G56) -> FALSE | H57: =IF(H56,H48/H56) -> 0.1 | I57: 0.1045454545 | J57: 0.1090163934 | K57: 0.1133565409 | L57: 0.1175130597 | M57: 0.121439506 | N57: 0.1250982304 | O57: 0.128461962 | P57: 0.1315144451 | Q57: 0.1342501487 | R57: 0.1342501487 | S57: 0.1342501487 | T57: 0.1342501487 | U57: 0.1342501487 | V57: 0.1342501487 | W57: 0.1342501487 | X57: 0.1342501487 | Y57: 0.1342501487 | Z57: 0.1342501487 | AA57: 0.1342501487 | AB57: =IF(AB56,AB48/AB56) -> 0.1342501487 | AC57: 0.1342501487 | AD57: 0.1342501487 | AE57: 0.1342501487 | AF57: 0.1342501487 | AG57: 0.1342501487 | AH57: 0.1342501487 | AI57: 0.1342501487 | AJ57: 0.1342501487 | AK57: 0.1342501487 | AL57: 0.1342501487 | AM57: 0.1342501487 | AN57: 0.1342501487 | AO57: 0.1342501487 | AP57: 0.1342501487 | AQ57: 0.1342501487 | AR57: 0.1342501487 | AS57: 0.1342501487 | AT57: 0.1342501487 | AU57: 0.1342501487 | AV57: 0.1342501487 | AW57: 0.1342501487 | AX57: 0.1342501487 | AY57: 0.1342501487 | AZ57: 0.1342501487 | BA57: 0.1342501487 | BB57: 0.1342501487 | BC57: 0.1342501487 | BD57: 0.1342501487
B59: Investment Balance
C60: Growth Rate Change
C61: Cap Exp to Depreciation (Interpolate) | G61: =interpolate_look_up(G2,37:37,39:39) -> 3.234634396 | H61: =interpolate_look_up(H2,37:37,39:39) -> 3.198993115 | I61: 3.163744552 | J61: 3.12888438 | K61: 3.094408321 | L61: 3.06031214 | M61: 3.026591654 | N61: 2.993242721 | O61: 2.960261248 | P61: 2.927643187 | Q61: 2.895384532 | R61: 2.863481324 | S61: 2.831929646 | T61: 2.800725624 | U61: 2.490949587 | V61: 2.215436526 | W61: 1.970396762 | X61: 1.752459777 | Y61: 1.55862785 | Z61: 1.386234827 | AA61: 1.232909443
C62: Net Plant Depreciation Rate (Interpolate) | G62: =interpolate_look_up(G2,37:37,40:40) -> 0.1342501487 | H62: =interpolate_look_up(H2,37:37,40:40) -> 0.1345972343 | I62: 0.1349452172 | J62: 0.1352940998 | K62: 0.1356438844 | L62: 0.1359945733 | M62: 0.1363461689 | N62: 0.1366986735 | O62: 0.1370520894 | P62: 0.137406419 | Q62: 0.1377616647 | R62: 0.1381178288 | S62: 0.1384749138 | T62: 0.1388329219 | U62: 0.1431164874 | V62: 0.1475322183 | W62: 0.1520841928 | X62: 0.1567766143 | Y62: 0.1616138162 | Z62: 0.1666002657 | AA62: 0.1717405676
A64: NOPAT and Free Cash Flow
B65: Plant Balance
C66: Opening Balance | G66: =F69 -> 65589999 | H66: =G69 -> 85266998.7 | I66: =H69 -> 110504187.8 | J66: 142769971.7 | K66: 183891363.7 | L66: 236133737.9 | M66: 302296349.9 | N66: 385826275.2 | O66: 490953763.2 | P66: 622852370.1 | Q66: 787827618.3 | R66: 993538334.2 | S66: 1249255225 | T66: 1566161668 | U66: 1957702085 | V66: 2375435514 | W66: 2801389221 | X66: 3214823868 | Y66: 3594070519 | Z66: 3918550317 | AA66: 4170696587
C67: Add: Capital Expenditures | G67: =G68*G61 -> 28482466.82 | H67: 36713891.33 | I67: 47177795.56 | J67: 60437326.73 | K67: 77186113.14 | L67: 98275518.96 | M67: 124746874.4 | N67: 157869428 | O67: 199184845.9 | P67: 250559162 | Q67: 314243160.1 | R67: 392942248.6 | S67: 489896952.6 | T67: 608975217.7 | U67: 697912874.8 | V67: 776406977.2 | W67: 839481665.2 | X67: 883255852.5 | Y67: 905331250.3 | Z67: 904977794.5 | AA67: 883105662.8
C68: Less: Depreciation | G68: =G66*G62 -> 8805467.121 | H68: 11476702.2 | I68: 14912011.63 | J68: 19315934.81 | K68: 24943738.88 | L68: 32112906.94 | M68: 41216949.19 | N68: 52741940 | O68: 67286239.03 | P68: 85583913.74 | Q68: 108532444.2 | R68: 137225357.6 | S68: 172990509.6 | T68: 217434800.6 | U68: 280179445.7 | V68: 350453271 | W68: 426047018.2 | X68: 504009201.4 | Y68: 580851452.3 | Z68: 652831524 | AA68: 716277799.3
C69: Closing Plant Balance | F69: =E24 -> 65589999 | G69: =G66+G67-G68 -> 85266998.7 | H69: =H66+H67-H68 -> 110504187.8 | I69: 142769971.7 | J69: 183891363.7 | K69: 236133737.9 | L69: 302296349.9 | M69: 385826275.2 | N69: 490953763.2 | O69: 622852370.1 | P69: 787827618.3 | Q69: 993538334.2 | R69: 1249255225 | S69: 1566161668 | T69: 1957702085 | U69: 2375435514 | V69: 2801389221 | W69: 3214823868 | X69: 3594070519 | Y69: 3918550317 | Z69: 4170696587 | AA69: 4337524451
C71: WC and Other as Pct of Plant | E71: =F25 -> -0.1807923678 | G71: =$E$71 -> -0.1807923678 | H71: =$E$71 -> -0.1807923678 | I71: -0.1807923678 | J71: -0.1807923678 | K71: -0.1807923678 | L71: -0.1807923678 | M71: -0.1807923678 | N71: -0.1807923678 | O71: -0.1807923678 | P71: -0.1807923678 | Q71: -0.1807923678 | R71: -0.1807923678 | S71: -0.1807923678 | T71: -0.1807923678 | U71: -0.1807923678 | V71: -0.1807923678 | W71: -0.1807923678 | X71: -0.1807923678 | Y71: -0.1807923678 | Z71: -0.1807923678 | AA71: -0.1807923678
C72: WC and Other Balance Closing | F72: =E25 -> -11858171.22 | G72: =G71*G69 -> -15415622.59 | H72: -19978313.77 | I72: -25811721.24 | J72: -33246155.05 | K72: -42691177.59 | L72: -54652872.88 | M72: -69754445.84 | N72: -88760693.31 | O72: -112606954.8 | P72: -142433220.5 | Q72: -179624147.9 | R72: -225855810.1 | S72: -283150076.3 | T72: -353937595.4 | U72: -429460611.2 | V72: -506469790.3 | W72: -581215619 | X72: -649780519.1 | Y72: -708443990 | Z72: -754030111.3 | AA72: -784191315.8
C73: Change in WC and Other | G73: =G72-F72 -> -3557451.367 | H73: =H72-G72 -> -4562691.178 | I73: -5833407.474 | J73: -7434433.811 | K73: -9445022.541 | L73: -11961695.29 | M73: -15101572.96 | N73: -19006247.47 | O73: -23846261.45 | P73: -29826265.75 | Q73: -37190927.41 | R73: -46231662.21 | S73: -57294266.19 | T73: -70787519.08 | U73: -75523015.74 | V73: -77009179.12 | W73: -74745828.75 | X73: -68564900.04 | Y73: -58663470.98 | Z73: -45586121.28 | AA73: -30161204.45
C75: Invested Capital Including WC and Other | F75: =E26 -> 53731827.78 | G75: =G66+F72 -> 53731827.78 | H75: =H66+G72 -> 69851376.11 | I75: 90525874.06 | J75: 116958250.5 | K75: 150645208.6 | L75: 193442560.3 | M75: 247643477.1 | N75: 316071829.3 | O75: 402193069.8 | P75: 510245415.3 | Q75: 645394397.8 | R75: 813914186.3 | S75: 1023399415 | T75: 1283011592 | U75: 1603764490 | V75: 1945974903 | W75: 2294919430 | X75: 2633608249 | Y75: 2944290000 | Z75: 3210106327 | AA75: 3416666476
C77: ROIC on Opening Investment | G77: =interpolate_look_up(G2,11:11,13:13) -> 0.07936620014 | H77: 0.15 | I77: 0.1522964206 | J77: 0.1546279981 | K77: 0.1569952709 | L77: 0.1593987854 | M77: 0.1618390964 | N77: 0.1643167673 | O77: 0.16683237 | P77: 0.1693864852 | Q77: 0.1719797026 | R77: 0.1746126208 | S77: 0.1772858475 | T77: 0.18 | U77: 0.16550267 | V77: 0.1521729653 | W77: 0.1399168448 | X77: 0.128647841 | Y77: 0.1182864509 | Z77: 0.1087595747 | AA77: 0.1
C79: NOPAT | G79: =G77*G75 -> 4264490.997 | H79: =H77*H75 -> 10477706.42 | I79: 13786766.59 | J79: 18085020.14 | K79: 23650585.34 | L79: 30834509.16 | M79: 40078396.55 | N79: 51935901.21 | O79: 67098823.02 | P79: 86428677.49 | Q79: 110994736.6 | R79: 142119689.2 | S79: 181434232.7 | T79: 230942086.5 | U79: 265427305 | V79: 296124771.5 | W79: 321097885.7 | X79: 338808015.2 | Y79: 348269614.6 | Z79: 349129798.9 | AA79: 341666647.6
C80: Tax Rate | E80: =E19 -> 0.2600095443 | G80: =$E$80 -> 0.2600095443 | H80: =$E$80 -> 0.2600095443 | I80: 0.2600095443 | J80: 0.2600095443 | K80: 0.2600095443 | L80: 0.2600095443 | M80: 0.2600095443 | N80: 0.2600095443 | O80: 0.2600095443 | P80: 0.2600095443 | Q80: 0.2600095443 | R80: 0.2600095443 | S80: 0.2600095443 | T80: 0.2600095443 | U80: 0.2600095443 | V80: 0.2600095443 | W80: 0.2600095443 | X80: 0.2600095443 | Y80: 0.2600095443 | Z80: 0.2600095443 | AA80: 0.2600095443
C81: EBIT =NOPAT/(1-t) | G81: =G79/(1-G80) -> 5762900 | H81: =H79/(1-H80) -> 14159245.35 | I81: 18631005.96 | J81: 24439531.62 | K81: 31960662.67 | L81: 41668793.05 | M81: 54160693.89 | N81: 70184555.5 | O81: 90675254.66 | P81: 116797016.5 | Q81: 149994821.9 | R81: 192056111.1 | S81: 245184557.8 | T81: 312087925.9 | U81: 358690173.6 | V81: 400173771.4 | W81: 433921658.3 | X81: 457854574.5 | Y81: 470640684.5 | Z81: 471803110.7 | AA81: 461717641
C82: Add: Depreciation | G82: =G68 -> 8805467.121 | H82: 11476702.2 | I82: 14912011.63 | J82: 19315934.81 | K82: 24943738.88 | L82: 32112906.94 | M82: 41216949.19 | N82: 52741940 | O82: 67286239.03 | P82: 85583913.74 | Q82: 108532444.2 | R82: 137225357.6 | S82: 172990509.6 | T82: 217434800.6 | U82: 280179445.7 | V82: 350453271 | W82: 426047018.2 | X82: 504009201.4 | Y82: 580851452.3 | Z82: 652831524 | AA82: 716277799.3
C83: EBITDA | G83: =G79+G82 -> 13069958.12 | H83: 21954408.62 | I83: 28698778.22 | J83: 37400954.95 | K83: 48594324.22 | L83: 62947416.09 | M83: 81295345.74 | N83: 104677841.2 | O83: 134385062 | P83: 172012591.2 | Q83: 219527180.8 | R83: 279345046.8 | S83: 354424742.3 | T83: 448376887.2 | U83: 545606750.8 | V83: 646578042.4 | W83: 747144903.9 | X83: 842817216.6 | Y83: 929121066.9 | Z83: 1001961323 | AA83: 1057944447
C84: Less: Cap Exp | G84: =G67 -> 28482466.82 | H84: 36713891.33 | I84: 47177795.56 | J84: 60437326.73 | K84: 77186113.14 | L84: 98275518.96 | M84: 124746874.4 | N84: 157869428 | O84: 199184845.9 | P84: 250559162 | Q84: 314243160.1 | R84: 392942248.6 | S84: 489896952.6 | T84: 608975217.7 | U84: 697912874.8 | V84: 776406977.2 | W84: 839481665.2 | X84: 883255852.5 | Y84: 905331250.3 | Z84: 904977794.5 | AA84: 883105662.8
C85: Less: Change in WC | G85: =G73 -> -3557451.367 | H85: =H73 -> -4562691.178 | I85: -5833407.474 | J85: -7434433.811 | K85: -9445022.541 | L85: -11961695.29 | M85: -15101572.96 | N85: -19006247.47 | O85: -23846261.45 | P85: -29826265.75 | Q85: -37190927.41 | R85: -46231662.21 | S85: -57294266.19 | T85: -70787519.08 | U85: -75523015.74 | V85: -77009179.12 | W85: -74745828.75 | X85: -68564900.04 | Y85: -58663470.98 | Z85: -45586121.28 | AA85: -30161204.45
C86: Less: Taxes on EBIT | G86: =G81*G80 -> 1498409.003 | H86: =H81*H80 -> 3681538.93 | I86: 4844239.368 | J86: 6354511.478 | K86: 8310077.336 | L86: 10834283.89 | M86: 14082297.33 | N86: 18248654.29 | O86: 23576431.64 | P86: 30368339.04 | Q86: 39000085.27 | R86: 49936421.91 | S86: 63750325.14 | T86: 81145839.39 | U86: 93262868.57 | V86: 104048999.9 | W86: 112823772.6 | X86: 119046559.2 | Y86: 122371069.9 | Z86: 122673311.8 | AA86: 120050993.4
C87: FCF | G87: =G83-G84-G85-G86 -> -13353466.34 | H87: =H83-H84-H85-H86 -> -13878330.46 | I87: -17489849.23 | J87: -21956449.44 | K87: -27456843.72 | L87: -34200691.47 | M87: -42432253.03 | N87: -52433993.6 | O87: -64529954.08 | P87: -79088644.02 | Q87: -96525137.21 | R87: -117301961.6 | S87: -141928269.2 | T87: -170956650.8 | U87: -170045976.8 | V87: -156868755.6 | W87: -130414705.2 | X87: -90920295.14 | Y87: -39917782.3 | Z87: 19896337.83 | AA87: 84948995.14
C89: FCF Growth | H89: =H87/G87-1 -> 0.03930545871 | I89: =I87/H87-1 -> 0.2602271782 | J89: 0.2553824307 | K89: 0.2505138315 | L89: 0.2456162779 | M89: 0.2406840683 | N89: 0.2357108061 | O89: 0.2306892848 | P89: 0.2256113481 | Q89: 0.2204677222 | R89: 0.2152478095 | S89: 0.2099394362 | T89: 0.2045285393 | U89: -0.005326929296 | V89: -0.07749210827 | W89: -0.1686381098 | X89: -0.3028370916 | Y89: -0.560958505 | Z89: -1.498432946 | AA89: 3.269579451
C90: NOPAT Growth | H90: =H79/G79-1 -> 1.456965303 | I90: 0.3158191345 | J90: 0.3117666151 | K90: 0.3077444842 | L90: 0.3037524745 | M90: 0.2997903209 | N90: 0.2958577608 | O90: 0.2919545334 | P90: 0.2880803805 | Q90: 0.2842350457 | R90: 0.2804182751 | S90: 0.2766298165 | T90: 0.2728694201 | U90: 0.1493240969 | V90: 0.1156530088 | W90: 0.08433308051 | X90: 0.05515492417 | Y90: 0.02792613798 | Z90: 0.002469880422 | AA90: -0.02137643747
C91: Investment Growth | H91: =H69/G69-1 -> 0.2959783915 | I91: 0.2919869786 | J91: 0.2880254959 | K91: 0.2840936802 | L91: 0.2801912705 | M91: 0.2763180079 | N91: 0.2724736358 | O91: 0.2686578998 | P91: 0.2648705474 | Q91: 0.2611113284 | R91: 0.2573799945 | S91: 0.2536762997 | T91: 0.25 | U91: 0.2133794678 | V91: 0.179316047 | W91: 0.1475820082 | X91: 0.1179680962 | Y91: 0.0902819787 | Z91: 0.06434682477 | AA91: 0.04
C92: Cap Exp Growth | H92: =H67/G67-1 -> 0.2889997049 | I92: 0.2850121263 | J92: 0.2810544878 | K92: 0.2771265262 | L92: 0.2732279806 | M92: 0.2693585922 | N92: 0.2655181043 | O92: 0.2617062624 | P92: 0.2579228142 | Q92: 0.2541675095 | R92: 0.2504401001 | S92: 0.2467403399 | T92: 0.2430679849 | U92: 0.1460447889 | V92: 0.1124697728 | W92: 0.08123920804 | X92: 0.05214430425 | Y92: 0.02499320858 | Z92: -0.000390415939 | AA92: -0.02416869435
C93: Working Capital Growth | H93: =H72/G72-1 -> 0.2959783915 | I93: =I72/H72-1 -> 0.2919869786 | J93: 0.2880254959 | K93: 0.2840936802 | L93: 0.2801912705 | M93: 0.2763180079 | N93: 0.2724736358 | O93: 0.2686578998 | P93: 0.2648705474 | Q93: 0.2611113284 | R93: 0.2573799945 | S93: 0.2536762997 | T93: 0.25 | U93: 0.2133794678 | V93: 0.179316047 | W93: 0.1475820082 | X93: 0.1179680962 | Y93: 0.0902819787 | Z93: 0.06434682477 | AA93: 0.04
B95: Valuation
C96: Period | G96: 1 | H96: 2 | I96: 3 | J96: 4 | K96: 5 | L96: 6 | M96: 7 | N96: 8 | O96: 9 | P96: 10 | Q96: 11 | R96: 12 | S96: 13 | T96: 14 | U96: 15 | V96: 16 | W96: 17 | X96: 18 | Y96: 19 | Z96: 20 | AA96: 21
C97: PV Factor End of Year | E97: =F14 -> 0.07 | G97: =1/(1+$E$97)^G96 -> 0.9345794393 | H97: =1/(1+$E$97)^H96 -> 0.8734387283 | I97: 0.8162978769 | J97: 0.762895212 | K97: 0.7129861795 | L97: 0.6663422238 | M97: 0.6227497419 | N97: 0.5820091046 | O97: 0.5439337426 | P97: 0.5083492921 | Q97: 0.4750927964 | R97: 0.4440119592 | S97: 0.4149644479 | T97: 0.387817241 | U97: 0.3624460196 | V97: 0.3387345978 | W97: 0.3165743905 | X97: 0.2958639163 | Y97: 0.276508333 | Z97: 0.2584190028 | AA97: 0.2415130867
C98: PV of Cash Flow Over Explicit Period | E98: =SUMPRODUCT(G97:AA97*G87:AA87*G3:AA3) -> -642229624.2
C99: PV of Explicit Cash Flow with Half Year Adj | E99: =E98*(1+E97)^part_yr_fac -> -664327488.9
C101: EV to Equity Bridge (Net Debt) | E101: =E32 -> 18739210.8
C102: Shares at Valuation Date | E102: =E33 -> 487740
B104: Vauation from Constant Growth Method (Gordon's Method)
C105: Terminal Period from Line 2 | E105: =F3 -> 2036
C106: Terminal WACC | E106: =LOOKUP(E105+1,11:11,14:14) -> 0.07 | F106: =_xlfn.FORMULATEXT(E106) -> =LOOKUP(E105+1,11:11,14:14)
C107: Terminal Growth Rate | E107: =LOOKUP(E105+1,11:11,15:15) -> 0.04 | F107: =_xlfn.FORMULATEXT(E107) -> =LOOKUP(E105+1,11:11,15:15)
C108: Terminal PV Factor | E108: =LOOKUP(E105,2:2,97:97) -> 0.2584190028
C109: Terminal Free Cash Flow | E109: =LOOKUP(E105+1,2:2,87:87) -> 84948995.14 | F109: Terminal + 1 CF
C110: Terminal Value without in Terminal Period | F110: Terminal CF/(WACC-g)
C111: PV of Terminal Value | F111: PV Factor x Terminal Value
C112: PV of Terminal Value adjusted for 1/2 year | F112: PV Terminal x (1+WACC)^partial_year
C114: Total Enterprise Value Including Explicit | F114: PV of Terminal Value + PV Explicit Above
C115: Less: EV to Equity Bridge | E115: =E101 -> 18739210.8
C116: Total Equity Value | F116: EV - EV to Equity Bridge
C117: Shares | E117: =E102 -> 487740
C118: Equity Valuation | F118: Equity Value/Shares
B120: Value Driver with EV/EBITDA Input
C121: Terminal Period | E121: =E105 -> 2036
C122: Terminal EBITDA | E122: =LOOKUP(E121,2:2,83:83) -> 1001961323
C123: Terminal EV/EBITDA | E123: =E21 -> 15
C124: Terminal Value | F124: EV/EBITDA Ratio x EBITDA
C125: PV of Terminal Value | F125: Multiply by PV Factor Above
C126: PV Adjusted | F126: PV Terminal x (1+WACC)^partial_year
C127: Less: EV to Equity Bridge | E127: =E115 -> 18739210.8
C128: Total Equity Value | F128: EV - EV to Equity Bridge
C129: Shares | E129: =E117 -> 487740
C130: Equity Valuation | F130: Equity Value/Shares
B133: Value Driver with Terminal Value with Book Value
C134: BV Terminal | E134: =SUMIF(2:2,F3+1,75:75) -> 3416666476
C135: Terminal ROIC | E135: =LOOKUP(F3+1,11:11,13:13) -> 0.1
C136: Terminal Growth | E136: =LOOKUP(F3+1,11:11,15:15) -> 0.04
C137: Value Driver Formula | F137: Value = NOPAT x (1-g/ROIC)/(WACC-g) | J137: NOPAT= Book Value of Invested Capital x ROIC
C138: PV Factor | E138: =LOOKUP(F3,2:2,97:97) -> 0.2584190028
C139: PV of Terminal EV with Partial Year Factor | F139: Value x PV Factor x (1+WACC) ^partial_year
C141: Total Enterprise Value with Explicit CF | F141: PV of Terminal Value + PV Explicit Above
C142: Less: EV to Equity Bridge | E142: =E127 -> 18739210.8
C143: Total Equity Value | F143: EV - EV to Equity Bridge
C144: Shares | E144: =E129 -> 487740
C145: Equity Valuation | F145: Equity Value/Shares
B148: Value Driver with Terminal NOPAT
C149: NOPAT in Terminal Year | E149: =LOOKUP(F3,2:2,79:79) -> 349129798.9
C150: Terminal Growth | E150: =E136 -> 0.04
C151: NOPAT with Growth | E151: =E149*(1+E150) -> 363094990.9
C152: Value Driver Formula from NOPAT | F152: Value = NOPAT x (1-g/ROIC)/(WACC-g)
C153: PV Factor | E153: =E138 -> 0.2584190028
C154: PV of Terminal Value | F154: Value x PV Factor x (1+WACC) ^partial_year
C156: Total Enterprise Value | F156: PV of Terminal Value + PV Explicit Above
C157: Less: EV to Equity Bridge | E157: =E142 -> 18739210.8
C158: Total Equity Value | F158: EV - EV to Equity Bridge
C159: Shares | E159: =E144 -> 487740
C160: Equity Valuation | F160: Equity Value/Shares

Sheet Amazon Stats
A1: Contents | B1: Amazon Stats | C1: Amazon
E2: 1 Year | F2: 5 Year | H2: Yahoo | J2: EPS
C3: Expected Growth | E3: 0.462 | F3: 0.4593 | H3: Current Quarters Estimate: | J3: 3.05 | N3: Instructions at www.edbodmer.com
C4: Past Growth | F4: 0.6612 | H4: Current Year's Estimate: | J4: 17.17 | N4: Questions: e-mail edwardbodmer@gmail.com
H5: Next Fiscal Year Estimate: | J5: 25.4
C6: Dividend Yield | E6: N/A
C7: Dividend Payout | E7: 0 | H7: Market Watch
C8: Historic ROE | E8: 0.1291 | H8: Fiscal year is January-December. All values USD millions.
C9: Forward ROE | E9: 0.3530475925 | J9: Revenue | K9: EPS
C10: Stock Price | E10: 2016 | H10: Current Qtr. (Sep 2018) | J10: 57040000 | K10: 3.11
H11: Next Qtr. (Dec 2018) | J11: 73800000 | K11: 5.99
H12: Current Year (2018) | J12: 234900000 | K12: 17.35
C13: ROIC Reported | E13: 0.0606 | H13: Next Year (2019) | J13: 286480000 | K13: 25.37
C14: Depreciation Rate | E14: 0.1593991541
C15: Tax Rate | E15: 0.2600095443 | H15: Growth Rate - 2019 | J15: 0.2195828012 | K15: 0.4622478386
C16: EBITDA | E16: 20630000
C17: Enterprise Value | E17: 995380032 | H17: Historic | J17: 2017-12-31
H18: EBITDA | J18: 26065649.29
C19: Net Debt | E19: 18739210.8 | H19: Operating Income | J19: 4433000
C20: Shares | E20: 487740 | H20: NOPAT | J20: 3280377.69
C21: Net Debt to Mkt Cap | E21: 0.01918822109
H22: Invested Capital | J22: 53731827.78
C23: Invested Capital/Share | E23: 110.1648989 | H23: Net Plant | J23: 48870000
H24: Working Capital | J24: -11858171.22
H25: Goodwill | J25: 16719999
H26: ROIC | J26: 0.06105092319

Sheet Valuation from Driver Formula
A1: Contents | B1: Valuation from Driver Formula
C3: Growth | D3: 0.05
C4: ROIC | D4: 0.3
C5: WACC | D5: 0.07
C7: NOPAT (2017) | D7: ='Amazon Stats'!J20 -> 3280377.69
C8: NOPAT Estimated | D8: =D7*1.3 -> 4264490.997
C9: Invested Capital (EOY 2009) | D9: ='Amazon Stats'!J22 -> 53731827.78
C11: Total Invested Capital | D11: =D9 -> 53731827.78
C12: Less: Equity
C13: EV to Equity Bridge | D13: ='Amazon Stats'!E19 -> 18739210.8
C15: Enterprise Value | D15: =D7*(1-D3/D4)/(D5-D3) -> 136682403.8 | F15: NOPAT x (1-g/ROIC)/(WACC-g)
C16: Less: EV to Equity Bridge | D16: =D13 -> 18739210.8
C17: Equity Value | D17: =D15-D16 -> 117943193
C19: Number of Shares | D19: ='Amazon Stats'!E20 -> 487740
C20: Equity Value per Share | D20: =D17/D19 -> 241.8157071

Sheet Scenario Name
B7: No | C7: Name | D7: Equity Value Growth Method | E7: Equity Value Multiple Method | F7: Equity Value Value Driver Method | G7: Equity Value Value Driver Method BV | H7: WACC | I7: Explicit Period | J7: 2018 Growth | K7: 2030 Growth | L7: Terminal Growth | M7: 2018 ROIC | N7: 2030 ROIC | O7: Terminal ROIC
